bitfinex/quotes_ETHUSD_20241119
["timestamp","ask_amount","ask_price","bid_price","bid_amount"]
[1731975963591,0.01,3182.9,3182.5,0.3139]
[1731975963821,0.325171,3182.9,3182.5,0.3139]
[1731975964234,1.256984,3184.4,3182.5,0.3139]
[1731975964235,3.15165,3183.1,3182.5,0.3139]
[1731975964396,0.63144868,3183.1,3182.4,0.3139]
[1731975964616,3.15218,3182.5,3182.4,0.3139]
[1731975964813,3.467398,3182.5,3182.4,0.3139]
[1731975965068,3.49764093,3182.5,3182.4,0.3139]
[1731975965400,3.14297,3181.7,3181.4,0.3139]
[1731975965651,3.14317,3181.5,3181.4,0.3139]
[1731975967246,3.15317,3181.5,3181.4,0.3139]
[1731975967450,6.783787,3181.5,3181.4,0.3139]
[1731975967959,3.783787,3181.5,3181.4,0.3139]
[1731975968104,3.15317,3181.5,3181.4,0.3139]
[1731975969535,0.01,3181.5,3181.4,0.3139]
[1731975969717,3.76492821,3181.6,3181.4,0.3139]
[1731975969919,0.01,3181.5,3181.4,0.3139]
[1731975970153,3.15317,3181.5,3181.4,0.3139]
[1731975970733,3.84496782,3181.5,3181.4,0.3139]
[1731975972064,3.15317,3181.5,3181.4,0.3139]
[1731975973441,0.01,3181.5,3181.4,0.3139]
[1731975973602,3.15317,3181.5,3181.4,0.3139]
[1731975974608,2.83937,3181.5,3181.4,0.3139]
[1731975976063,3.14327,3181.4,3181.3,2.16737049]
[1731975976412,2.83937,3181.5,3181.3,2.16737049]
[1731975976850,3.14327,3181.4,3181.3,2.16737049]
[1731975978206,0.01,3181.5,3181.3,2.16737049]
[1731975978406,3.14327,3181.4,3181.3,2.16737049]
[1731975978609,0.01,3181.5,3181.3,2.16737049]
[1731975979039,3.14325,3181.5,3181.3,2.16737049]
[1731975979267,3.15327,3181.4,3181.3,2.16737049]
[1731975979472,3.15327,3181.4,3181.3,1.85337049]
[1731975979621,4.20677,3181.4,3181.3,1.85337049]
[1731975979811,4.20677,3181.4,3181.3,1.53947049]
[1731975980118,7.20677,3181.4,3181.3,1.53947049]
[1731975980327,8.3761427,3181.4,3181.3,1.53947049]
[1731975981132,0.01,3181.4,3181.3,1.53947049]
[1731975981360,3.15327,3181.4,3181.3,1.85337049]
[1731975981997,3.76490821,3181.6,3181.3,1.85337049]
[1731975981998,0.62183821,3181.6,3181.3,1.85337049]
[1731975982436,0.01,3182.0,3181.3,4.99671049]
[1731975982641,0.01,3182.2,3181.7,0.3139]
[1731975982858,3.15248,3182.2,3181.7,0.3139]
[1731975983284,3.14261,3182.1,3181.7,0.3139]
[1731975983484,0.01,3182.0,3181.7,0.3139]
[1731975983692,3.1527,3182.0,3181.5,0.3139]
[1731975983838,0.66976093,3182.0,3181.5,0.3139]
[1731975984042,0.66976093,3182.0,3181.4,0.3139]
[1731975984043,3.15268,3182.0,3181.4,0.3139]
[1731975984559,0.01,3182.0,3181.4,0.3139]
[1731975984766,3.14277,3181.9,3181.4,0.3139]
[1731975985062,0.01,3182.2,3181.8,0.3139]
[1731975985247,0.01,3182.2,3181.8,3.45675]
[1731975985657,3.1426,3182.1,3181.8,0.3139]
[1731975986118,3.78403625,3182.3,3181.8,0.3139]
[1731975986297,3.14259,3182.1,3181.8,0.3139]
[1731975986628,0.01,3182.7,3182.1,0.3139]
[1731975986752,0.01,3182.7,3182.1,3.45645]
[1731975986957,0.01,3182.7,3182.3,0.3139]
[1731975987209,3.15179,3182.9,3182.3,0.3139]
[1731975987371,0.01,3182.7,3182.3,0.3139]
[1731975987558,3.15206,3182.7,3182.3,0.3139]
[1731975987768,0.01,3182.9,3182.3,0.3139]
[1731975987955,0.01,3182.9,3182.5,0.3139]
[1731975989051,0.63059494,3183.3,3182.9,0.3139]
[1731975989263,3.6340816,3183.6,3183.3,0.3139]
[1731975989264,0.01,3183.6,3183.3,0.3139]
[1731975989532,0.01,3183.6,3183.2,3.14146]
[1731975989731,0.04024293,3183.8,3183.2,3.14146]
[1731975989902,0.68748816,3183.8,3182.4,0.01]
[1731975990108,3.1413,3183.4,3182.4,3.14228]
[1731975990291,3.1413,3183.4,3182.5,3.14215]
[1731975990491,3.15151,3183.2,3182.5,3.14215]
[1731975990790,0.01,3183.2,3182.6,0.3139]
[1731975990991,0.01,3183.2,3182.6,3.45596]
[1731975991340,3.77855081,3183.5,3182.8,3.14187]
[1731975991549,3.77855081,3183.5,3182.9,3.14177]
[1731975991835,0.63734081,3183.5,3182.7,0.06282816]
[1731975992040,3.1414,3183.3,3182.6,3.45588]
[1731975992239,3.1414,3183.3,3182.6,0.3139]
[1731975992533,3.76859081,3183.5,3182.8,3.14186]
[1731975992716,4.14644989,3183.5,3182.8,3.14186]
[1731975993093,1.00519989,3183.5,3182.8,3.14186]
[1731975993293,0.62734081,3183.5,3182.9,0.04424064]
[1731975993596,0.62734081,3183.5,3183.0,3.14168]
[1731975994041,0.62734081,3183.5,3183.1,3.14149]
[1731975994404,0.62734081,3183.5,3182.9,3.14178]
[1731975994612,3.1411,3183.6,3182.9,3.14178]
[1731975994811,3.1411,3183.6,3182.7,3.20478692]
[1731975994812,3.14129,3183.4,3182.7,3.20478692]
[1731975995011,3.1414,3183.3,3183.1,0.0126831]
[1731975995724,0.629201,3183.6,3183.1,0.0126831]
[1731975995923,0.63350751,3183.7,3183.1,0.0126831]
[1731975995924,3.14149,3183.2,3183.1,0.0126831]
[1731975996110,3.15149,3183.2,3183.1,0.0126831]
[1731975997295,3.18173293,3183.2,3183.1,0.0126831]
[1731975997877,6.81581453,3183.2,3183.1,0.0126831]
[1731975998078,3.15149,3183.2,3183.1,0.0126831]
[1731975998250,0.742326,3183.2,3183.1,0.0126831]
[1731975998454,0.01,3183.2,3183.1,0.0126831]
[1731975999147,7.8054816,3183.6,3183.1,0.0126831]
[1731975999148,4.1714,3183.6,3183.1,0.0126831]
[1731975999487,4.1714,3183.6,3182.9,3.14171]
[1731975999488,0.31970751,3183.7,3182.8,3.14181]
[1731975999636,0.31970751,3183.7,3182.9,0.314181]
[1731975999838,3.14109,3183.6,3182.9,3.14173]
[1731976000156,3.14109,3183.6,3183.0,0.3139]
[1731976000485,0.31970751,3183.7,3182.8,0.3139]
[1731976000486,3.1414,3183.3,3182.8,0.3139]
[1731976000850,3.1412,3183.5,3182.8,3.45575]
[1731976001273,3.1412,3183.5,3182.9,0.0304]
[1731976001789,3.1411,3183.6,3183.0,0.3139]
[1731976001989,0.31970751,3183.7,3183.2,0.3139]
[1731976002282,0.30970751,3183.7,3183.5,0.3139]
[1731976003085,0.01,3184.1,3183.7,0.3139]
[1731976003278,3.14034,3184.4,3183.9,0.3139]
[1731976003590,0.6295051,3184.3,3183.9,3.45469]
[1731976003788,3.13998,3184.8,3184.2,0.3139]
[1731976004085,3.14989,3184.9,3184.2,0.3139]
[1731976004609,3.13992,3184.8,3184.2,0.3139]
[1731976004808,3.1403,3184.4,3184.3,0.3139]
[1731976005099,3.14012,3184.6,3184.3,0.3139]
[1731976005242,0.01,3184.7,3184.3,0.3139]
[1731976005441,3.13993,3184.8,3184.3,0.3139]
[1731976005981,0.63171248,3184.9,3184.4,0.3139]
[1731976006197,3.14966,3185.1,3184.4,0.3139]
[1731976006416,0.62892,3185.0,3184.7,0.3139]
[1731976006885,3.14969,3185.1,3184.7,0.3139]
[1731976006886,0.01,3185.1,3184.7,0.3139]
[1731976007057,3.13971,3185.0,3184.7,0.3139]
[1731976007257,3.14963,3185.1,3184.7,0.3139]
[1731976007454,3.13983,3184.9,3184.3,0.3139]
[1731976008600,3.454723,3185.0,3184.3,0.3139]
[1731976008747,3.13994,3184.8,3184.2,0.3139]
[1731976008946,3.13982,3184.9,3184.2,3.45438]
[1731976009297,3.17016293,3184.8,3184.2,0.3139]
[1731976009451,0.01,3184.7,3184.2,0.3139]
[1731976009639,3.14018,3184.6,3184.2,0.3139]
[1731976009888,3.14018,3184.6,3184.0,0.3443]
[1731976010504,0.63203429,3184.6,3184.0,0.3443]
[1731976010674,0.04024293,3185.0,3184.2,0.3139]
[1731976010884,3.14954,3185.2,3184.6,0.3139]
[1731976011388,0.01,3185.2,3184.8,0.3139]
[1731976012212,0.63183031,3185.3,3184.8,0.3139]
[1731976012405,3.13923,3185.5,3185.0,0.3139]
[1731976012570,0.01,3185.6,3185.0,3.45361]
[1731976012772,3.14903,3185.7,3185.0,3.45361]
[1731976013174,3.13917,3185.6,3185.0,0.3139]
[1731976013424,3.13917,3185.6,3185.0,0.0304]
[1731976013555,0.99679716,3185.7,3185.0,0.0304]
[1731976013556,0.99679716,3185.7,3185.2,0.3139]
[1731976013900,3.18495,3185.8,3185.2,0.3139]
[1731976014260,3.18495,3185.8,3185.2,3.45341]
[1731976014514,3.18495,3185.8,3185.2,0.3139]
[1731976014515,2.87115,3185.8,3185.2,0.3139]
[1731976014734,3.14883,3185.9,3185.3,0.3139]
[1731976014868,3.13908,3185.7,3185.3,0.3139]
[1731976015067,0.62432493,3185.8,3185.3,0.3139]
[1731976015512,3.13894,3185.8,3185.3,0.3139]
[1731976015740,3.13894,3185.8,3185.2,0.3139]
[1731976016019,3.13903,3185.7,3185.2,0.3139]
[1731976016516,3.14884,3185.9,3185.2,0.37668607]
[1731976016663,3.14865,3186.1,3185.4,0.3139]
[1731976016866,3.13874,3186.0,3185.4,0.3139]
[1731976017862,0.01,3186.1,3185.2,0.3139]
[1731976017863,3.13883,3185.9,3185.2,0.3139]
[1731976018126,0.01,3186.1,3185.2,0.3139]
[1731976018127,0.01,3185.3,3185.2,0.3139]
[1731976018266,3.14942,3185.3,3185.2,0.3139]
[1731976018919,0.01,3185.3,3184.2,0.0304]
[1731976019074,0.03024293,3185.4,3184.3,0.3139]
[1731976019075,3.13986,3184.9,3184.3,0.3139]
[1731976019275,0.03024293,3185.0,3184.3,0.3139]
[1731976019473,0.03024293,3185.0,3184.2,3.14047]
[1731976019474,0.03024293,3185.0,3184.6,0.3139]
[1731976019729,3.14963,3185.1,3184.6,0.3443]
[1731976020171,3.13989,3184.9,3184.6,0.3443]
[1731976020369,3.13989,3184.9,3184.6,0.3139]
[1731976020578,8.48223281,3185.5,3184.7,0.3139]
[1731976020579,3.13952,3185.2,3184.7,0.3139]
[1731976020808,3.99755328,3185.4,3184.7,0.3139]
[1731976021119,0.63412121,3185.5,3184.9,3.45363]
[1731976021410,3.14883,3185.9,3185.4,0.3139]
[1731976021619,0.01,3185.9,3185.4,0.3139]
[1731976021822,3.13904,3185.7,3185.4,0.3139]
[1731976022192,3.13922,3185.5,3185.4,0.3139]
[1731976022490,3.13922,3185.5,3184.7,0.3139]
[1731976022491,3.13942,3185.3,3184.7,0.3139]
[1731976023429,3.13942,3185.3,3184.8,0.3139]
[1731976023789,3.13979,3185.0,3184.8,0.3139]
[1731976023986,3.13952,3185.2,3184.8,0.3139]
[1731976024537,3.13952,3185.2,3184.9,0.3139]
[1731976024891,3.1397,3185.1,3184.9,0.3139]
[1731976025508,3.1397,3185.1,3184.5,0.3139]
[1731976025695,3.1397,3185.1,3184.5,0.6372323]
[1731976025896,3.1397,3185.1,3184.5,3.7773823]
[1731976026100,3.13943,3185.3,3184.5,3.7773623]
[1731976026335,0.01,3185.4,3184.5,3.7773623]
[1731976026336,3.13952,3185.2,3184.5,3.7773623]
[1731976026536,3.13952,3185.2,3184.7,0.3139]
[1731976026914,1.093,3185.6,3185.2,0.3139]
[1731976026915,0.01,3185.6,3185.2,0.3139]
[1731976027100,3.13896,3185.8,3185.4,0.3139]
[1731976027821,3.13896,3185.8,3185.4,0.659241]
[1731976028019,0.61407447,3185.7,3185.4,0.3139]
[1731976028217,0.61407447,3185.7,3185.2,0.3139]
[1731976028410,3.13873,3186.0,3185.2,0.3139]
[1731976028612,3.13873,3186.0,3185.5,0.3139]
[1731976028845,1.0446,3186.3,3185.5,0.3139]
[1731976028846,0.01,3186.1,3185.5,0.3139]
[1731976029053,3.13883,3185.9,3185.5,0.3139]
[1731976029544,3.13883,3185.9,3185.6,0.3139]
[1731976029763,3.13892,3185.9,3185.6,0.3139]
[1731976029908,3.14863,3186.1,3185.6,0.3139]
[1731976029909,3.13893,3185.8,3185.6,0.3139]
[1731976030114,3.13902,3185.7,3185.6,0.3139]
[1731976030552,3.13893,3185.8,3185.0,0.3442]
[1731976030762,3.13924,3185.5,3185.0,0.3442]
[1731976031482,3.6440816,3185.9,3185.0,0.3442]
[1731976031761,0.39589446,3185.8,3185.0,0.0303]
[1731976031981,0.63599224,3186.4,3186.0,0.3139]
[1731976032273,3.13746,3187.3,3186.7,0.3139]
[1731976032408,3.13746,3187.3,3186.6,3.13812]
[1731976032409,0.01,3187.4,3186.9,0.3139]
[1731976032611,3.13746,3187.3,3186.9,0.3139]
[1731976033060,0.01,3187.4,3186.9,0.3139]
[1731976033276,3.13706,3187.7,3187.1,0.3139]
[1731976033417,0.62942925,3187.9,3187.1,3.45154]
[1731976033613,0.01,3188.2,3187.7,0.3139]
[1731976033919,3.13675,3188.1,3187.7,0.3139]
[1731976034321,3.13671,3188.1,3187.7,0.3139]
[1731976034660,3.13671,3188.1,3187.3,3.25507172]
[1731976035156,0.01,3187.8,3187.0,0.3139]
[1731976035365,0.01,3187.8,3186.9,0.0549]
[1731976035366,3.13718,3187.6,3186.9,3.19273]
[1731976035517,3.13718,3187.6,3186.9,3.25547309]
[1731976035886,3.13758,3187.2,3186.6,0.3139]
[1731976036067,3.452418,3187.1,3186.6,0.3139]
[1731976036213,3.13766,3187.1,3186.6,0.3139]
[1731976036415,3.13786,3186.9,3186.6,0.3139]
[1731976036668,0.01,3186.9,3186.1,0.0549]
[1731976036960,3.13836,3186.4,3186.1,0.0549]
[1731976037514,3.13819,3186.6,3186.1,0.0549]
[1731976037715,3.14786,3186.9,3186.1,0.0549]
[1731976037955,3.14795,3186.8,3186.1,0.0549]
[1731976038167,3.14752,3187.3,3186.1,0.11766155]
[1731976038478,0.01,3187.1,3186.1,0.11766155]
[1731976038618,0.01,3187.1,3186.5,3.13816]
[1731976038820,3.13758,3187.2,3186.5,3.13816]
[1731976039021,4.07882,3187.2,3186.5,3.13816]
[1731976039262,0.01,3187.3,3186.6,0.0549]
[1731976039561,3.13726,3187.5,3186.8,3.13791]
[1731976039770,3.13726,3187.5,3186.8,0.06274453]
[1731976039936,3.14739,3187.4,3186.7,0.3139]
[1731976040462,3.14739,3187.4,3186.6,0.3688]
[1731976040463,3.13776,3187.0,3186.6,0.3688]
[1731976040669,3.13785,3186.9,3186.1,0.0549]
[1731976040876,3.13785,3186.9,3186.1,0.3688]
[1731976041093,3.13767,3187.1,3186.4,3.13832]
[1731976041233,3.13746,3187.3,3186.5,0.0627546]
[1731976041454,1.70054033,3187.9,3186.5,0.3766546]
[1731976041747,0.01,3187.9,3187.2,3.13747]
[1731976041950,1.00680672,3188.1,3187.6,3.13713]
[1731976042247,0.62816806,3188.1,3187.6,3.13713]
[1731976042451,3.13657,3188.2,3187.6,3.13713]
[1731976042767,3.14622,3188.6,3187.8,3.13695]
[1731976042969,0.01,3188.6,3187.7,0.37662979]
[1731976043271,3.13671,3188.1,3187.4,3.19224]
[1731976043558,3.13676,3188.0,3187.4,3.19224]
[1731976043732,3.14626,3188.6,3187.5,0.43153407]
[1731976044073,3.13628,3188.5,3187.8,3.13688]
[1731976044358,0.314628,3188.4,3187.6,3.45105]
[1731976044566,3.13677,3188.0,3187.6,0.3139]
[1731976044952,3.13677,3188.0,3187.5,0.0549]
[1731976045565,0.01,3188.2,3187.5,0.0549]
[1731976045753,3.13677,3188.0,3187.5,0.0549]
[1731976045951,3.13698,3187.8,3187.5,0.0549]
[1731976046395,3.13677,3188.0,3187.5,0.0549]
[1731976046553,0.03024293,3187.9,3187.2,0.3139]
[1731976046891,3.13717,3187.6,3187.2,0.3139]
[1731976047038,3.13735,3187.4,3187.3,0.3139]
[1731976048082,3.13735,3187.4,3186.7,0.0549]
[1731976048083,3.13735,3187.4,3186.8,0.3139]
[1731976048380,0.01,3187.5,3186.8,0.3139]
[1731976048381,3.13759,3187.2,3186.8,0.3139]
[1731976048787,3.13759,3187.2,3186.8,0.1139]
[1731976048939,3.13759,3187.2,3186.7,0.0549]
[1731976049584,3.13766,3187.1,3186.7,0.0549]
[1731976049881,3.13717,3187.6,3186.7,3.857463]
[1731976050090,0.01,3187.7,3187.0,0.3139]
[1731976050411,0.01,3187.7,3187.2,0.3139]
[1731976050746,3.13676,3188.0,3187.2,0.3139]
[1731976051047,0.314676,3188.0,3187.4,0.3139]
[1731976051280,0.01,3188.1,3187.4,0.3139]
[1731976051838,0.01,3188.1,3187.4,0.3766351]
[1731976052041,0.01,3188.1,3187.5,0.3139]
[1731976052042,3.13687,3187.9,3187.5,0.3139]
[1731976052283,3.13715,3187.6,3187.5,0.3139]
[1731976052505,3.46970738,3187.6,3187.5,0.3139]
[1731976053003,3.13735,3187.4,3187.2,0.3139]
[1731976053307,0.01,3187.9,3186.8,0.37665172]
[1731976053509,0.01,3187.9,3187.0,0.3139]
[1731976053805,3.13699,3187.8,3187.2,0.3139]
[1731976054099,0.01,3187.9,3187.2,0.3139]
[1731976054306,3.13688,3187.9,3187.4,0.3139]
[1731976054486,3.13705,3187.7,3187.4,0.3139]
[1731976054691,3.13725,3187.5,3187.4,0.3139]
[1731976054860,3.14725,3187.5,3187.4,0.3139]
[1731976055261,3.13771,3187.1,3186.6,0.0549]
[1731976055903,3.14747,3187.3,3186.6,0.0549]
[1731976055904,3.13776,3187.0,3186.6,0.0549]
[1731976056667,3.14767,3187.1,3186.6,0.0549]
[1731976057073,0.01,3187.1,3186.6,0.3688]
[1731976057366,0.01,3187.2,3186.6,3.50692]
[1731976057603,3.13745,3187.3,3186.6,3.50692]
[1731976058019,3.13757,3187.2,3186.6,3.50692]
[1731976058234,3.13726,3187.5,3186.3,0.3139]
[1731976058235,0.01,3187.0,3186.3,0.3139]
[1731976058518,3.13833,3186.4,3186.3,0.3139]
[1731976058878,3.13833,3186.4,3185.7,0.3686]
[1731976058879,3.13856,3186.2,3185.7,0.3686]
[1731976059415,3.13856,3186.2,3185.7,0.0547]
[1731976059416,3.13858,3186.2,3185.7,0.0547]
[1731976059957,3.13814,3186.6,3185.7,0.40547]
[1731976060163,3.14776,3187.0,3186.1,0.3139]
[1731976060457,3.6340816,3187.7,3186.6,0.3139]
[1731976060458,0.01,3186.9,3186.6,0.3139]
[1731976061057,3.14774,3187.0,3186.8,0.3139]
[1731976061224,3.21628443,3186.9,3186.8,0.3139]
[1731976061714,3.13784,3186.9,3186.8,0.3139]
[1731976061911,3.868617,3186.9,3186.8,0.3139]
[1731976062141,6.878617,3186.9,3186.8,0.3139]
[1731976062944,6.878617,3186.9,3185.4,3.1393]
[1731976062945,3.14879,3186.0,3185.5,0.3139]
[1731976063315,0.01,3186.0,3185.5,0.3139]
[1731976063753,3.13852,3186.3,3185.7,0.3139]
[1731976064119,0.01,3185.9,3185.7,0.3139]
[1731976064318,3.1387,3186.1,3185.7,0.3139]
[1731976064618,0.01,3185.9,3185.7,0.3139]
[1731976064820,0.01,3185.9,3185.8,0.3139]
[1731976065015,3.13859,3186.2,3185.8,0.3139]
[1731976065243,0.01,3186.4,3185.8,0.3139]
[1731976065244,3.13863,3186.1,3185.8,0.3139]
[1731976065922,3.13863,3186.1,3185.6,0.3139]
[1731976067879,0.314863,3186.1,3185.5,0.3139]
[1731976068182,3.0,3186.0,3185.5,0.3139]
[1731976068505,3.13912,3185.6,3185.5,0.3139]
[1731976069463,2.82532,3185.6,3185.5,0.3139]
[1731976069990,3.13927,3185.5,3185.2,0.3139]
[1731976070149,3.13942,3185.3,3185.2,0.3139]
[1731976070990,3.13905,3185.7,3185.3,0.3139]
[1731976071428,3.13884,3185.9,3185.3,0.3139]
[1731976071590,3.1387,3186.1,3185.3,0.3139]
[1731976071789,3.1387,3186.1,3184.7,0.01]
[1731976071790,3.13906,3185.7,3185.5,0.3139]
[1731976072002,3.13912,3185.6,3185.5,0.3139]
[1731976072191,3.766926,3185.6,3185.5,0.3139]
[1731976072715,3.766926,3185.6,3185.1,0.3139]
[1731976072917,3.1393,3185.5,3185.1,0.3139]
[1731976073213,1.0374,3186.1,3185.1,0.3139]
[1731976073415,3.13941,3185.4,3185.1,0.3139]
[1731976075584,3.13915,3185.6,3185.1,0.3139]
[1731976076190,1.0374,3186.1,3185.1,0.3139]
[1731976076439,3.13921,3185.6,3185.1,0.3139]
[1731976076641,3.13923,3185.5,3185.1,0.3139]
[1731976076848,3.13931,3185.5,3185.1,0.3139]
[1731976077024,3.13949,3185.3,3184.7,0.3139]
[1731976077196,3.13949,3185.3,3184.9,0.3139]
[1731976077394,3.60535535,3186.0,3184.6,3.1401]
[1731976077395,1.0674,3185.4,3184.6,0.3139]
[1731976077721,3.14001,3184.7,3184.6,0.3139]
[1731976077891,4.7014816,3185.4,3184.6,0.3139]
[1731976078236,3.13972,3185.0,3184.4,0.3139]
[1731976078534,3.14021,3184.5,3184.4,0.3139]
[1731976079072,3.768233,3184.5,3184.4,0.3139]
[1731976079220,3.14049,3184.3,3183.9,0.3139]
[1731976079414,2.82685,3184.1,3183.9,0.3139]
[1731976079730,3.14049,3184.3,3183.9,0.3139]
[1731976080269,4.0306,3184.9,3183.9,0.742646]
[1731976080435,3.14005,3184.7,3184.1,3.45448]
[1731976080768,3.14005,3184.7,3183.9,0.06280695]
[1731976080769,3.13987,3184.9,3184.3,0.3139]
[1731976080918,2.92601845,3185.3,3184.5,0.3139]
[1731976081122,3.13972,3185.0,3184.5,1.3887]
[1731976082840,0.63868331,3185.2,3184.5,1.3887]
[1731976083041,3.13923,3185.5,3184.9,0.3139]
[1731976083349,3.13895,3185.8,3184.9,3.45371]
[1731976083549,3.6340816,3186.2,3185.2,1.3887]
[1731976083751,3.13929,3185.5,3185.2,1.3887]
[1731976083923,3.13929,3185.5,3185.2,0.3139]
[1731976084119,3.13929,3185.5,3184.9,0.3139]
[1731976084323,3.13971,3185.0,3184.9,0.3139]
[1731976084552,3.13942,3185.3,3184.4,0.3139]
[1731976084753,3.13971,3185.0,3184.4,0.3139]
[1731976085869,3.13952,3185.2,3184.3,0.3139]
[1731976086214,6.13912,3185.7,3184.7,0.3139]
[1731976086215,3.13942,3185.3,3184.7,0.3139]
[1731976086380,3.13955,3185.2,3184.7,0.3139]
[1731976086542,3.77455926,3185.9,3185.3,0.3139]
[1731976086880,3.13909,3185.7,3185.3,0.3139]
[1731976087168,3.13883,3185.9,3185.3,0.3139]
[1731976087725,3.13863,3186.1,3185.4,0.3139]
[1731976087926,1.0915,3186.4,3185.6,0.3139]
[1731976088229,3.13894,3185.8,3185.6,0.3139]
[1731976088830,3.13873,3186.0,3185.6,0.3139]
[1731976089025,3.13891,3185.9,3185.6,0.3139]
[1731976089568,3.13948,3185.3,3185.1,0.3139]
[1731976089738,0.627764,3185.9,3185.1,0.3139]
[1731976089957,3.13874,3186.0,3185.4,3.4532]
[1731976090157,3.13874,3186.0,3185.4,0.3139]
[1731976090946,3.13854,3186.2,3185.5,0.3139]
[1731976091491,3.13843,3186.3,3185.7,0.3139]
[1731976091696,6.6340816,3186.5,3185.7,3.80442017]
[1731976091697,6.13829,3186.5,3185.7,3.80442017]
[1731976091853,3.0,3186.5,3185.9,0.3139]
[1731976092494,1.0108,3186.7,3185.9,0.3139]
[1731976092661,3.13873,3186.0,3185.9,0.3139]
[1731976092859,4.484003,3186.0,3185.9,0.3139]
[1731976093249,7.484003,3186.0,3185.9,0.3139]
[1731976093880,3.13873,3186.0,3185.2,0.3139]
[1731976094088,3.13861,3186.2,3185.4,0.3139]
[1731976094305,3.13884,3185.9,3185.4,0.3139]
[1731976094651,3.13864,3186.1,3185.6,0.3139]
[1731976095454,3.13857,3186.2,3185.6,0.3139]
[1731976095955,3.13844,3186.3,3185.6,3.453]
[1731976096158,3.13855,3186.2,3185.6,3.453]
[1731976096573,3.13844,3186.3,3185.8,0.3139]
[1731976096955,3.13857,3186.2,3185.8,0.3139]
[1731976097483,3.13864,3186.1,3185.8,0.3139]
[1731976097696,3.13864,3186.1,3185.5,1.056]
[1731976097697,3.13857,3186.2,3185.6,0.3139]
[1731976098304,3.13875,3186.0,3185.6,0.3139]
[1731976098905,0.37666931,3186.4,3185.6,0.3139]
[1731976099216,3.13894,3185.8,3185.6,0.3139]
[1731976099363,3.13894,3185.8,3185.2,1.3265]
[1731976099565,3.13894,3185.8,3185.2,1.640458]
[1731976099764,3.13894,3185.8,3185.2,4.779938]
[1731976099966,3.13894,3185.8,3185.2,1.640458]
[1731976100298,3.13894,3185.8,3185.2,1.3265]
[1731976100605,3.6340816,3186.1,3185.2,1.3265]
[1731976100762,3.13942,3185.3,3185.2,0.3139]
[1731976100959,0.627864,3185.3,3185.2,0.3139]
[1731976101188,3.0,3185.9,3185.2,0.3139]
[1731976101495,3.13882,3186.0,3185.6,0.3139]
[1731976102115,3.13855,3186.2,3185.6,0.3139]
[1731976102975,3.13855,3186.2,3185.6,3.45301]
[1731976103308,3.13843,3186.3,3185.6,3.45301]
[1731976103626,0.63982567,3186.3,3185.6,0.9306958]
[1731976103768,0.63982567,3186.3,3185.5,1.0564]
[1731976103971,3.77827567,3186.3,3185.6,0.3139]
[1731976104500,3.77827567,3186.3,3185.6,3.45295]
[1731976104699,3.77827567,3186.3,3185.8,0.3139]
[1731976104873,3.13834,3186.4,3185.8,0.3139]
[1731976105602,3.13834,3186.4,3185.8,3.45282]
[1731976105921,3.13805,3186.7,3186.2,0.3139]
[1731976106275,3.13805,3186.7,3182.3,26.22]
[1731976106276,3.13783,3187.0,3186.5,0.3139]
[1731976106508,3.13784,3186.9,3186.5,0.3139]
[1731976106806,0.62754,3187.0,3186.5,0.3139]
[1731976107017,3.13801,3186.8,3186.5,0.3139]
[1731976107308,3.13776,3187.0,3186.3,0.3139]
[1731976107510,0.61209307,3187.2,3186.3,0.3139]
[1731976107511,3.61209307,3187.2,3186.3,0.3139]
[1731976107827,3.13813,3186.7,3186.3,0.3139]
[1731976108368,3.13786,3186.9,3186.4,0.3139]
[1731976109023,3.13795,3186.8,3186.4,0.3139]
[1731976109169,3.13774,3187.0,3186.4,0.3139]
[1731976109170,3.61209307,3187.2,3186.4,0.3139]
[1731976109522,3.13815,3186.6,3186.5,0.3139]
[1731976111370,3.13795,3186.8,3186.2,0.3139]
[1731976112212,3.13777,3187.0,3186.4,0.3139]
[1731976112412,3.13766,3187.1,3186.4,0.3139]
[1731976112616,3.13747,3187.3,3186.6,0.3139]
[1731976112814,3.13747,3187.3,3186.8,0.3139]
[1731976113126,3.13743,3187.4,3186.8,0.3139]
[1731976113269,3.13735,3187.4,3186.8,0.3139]
[1731976113474,3.13762,3187.2,3186.8,0.3139]
[1731976113919,3.13767,3187.1,3186.8,0.3139]
[1731976114711,3.1375,3187.3,3186.8,0.3139]
[1731976114931,3.13756,3187.2,3186.8,0.3139]
[1731976115775,3.13735,3187.4,3186.8,0.3139]
[1731976116088,1.58981779,3187.5,3186.8,0.3139]
[1731976116089,3.13726,3187.5,3187.0,0.3139]
[1731976116398,4.07,3187.8,3187.0,0.3139]
[1731976116598,3.13731,3187.5,3187.0,0.3139]
[1731976116803,3.13752,3187.3,3187.0,0.3139]
[1731976118292,3.13866,3186.1,3185.9,0.3139]
[1731976119595,2.82486,3186.1,3185.8,0.7628]
[1731976119997,3.13816,3186.6,3185.9,0.3139]
[1731976120199,3.13838,3186.4,3185.9,0.3139]
[1731976120703,3.1386,3186.2,3185.9,0.3139]
[1731976121415,0.37746512,3186.7,3186.1,0.3139]
[1731976121600,3.13822,3186.6,3186.1,0.659161]
[1731976121925,3.13822,3186.6,3186.1,0.3139]
[1731976123003,3.13824,3186.5,3185.9,0.3139]
[1731976123724,3.13859,3186.2,3185.9,0.3139]
[1731976124017,3.13837,3186.4,3185.9,0.3139]
[1731976124228,3.13833,3186.5,3185.9,0.3139]
[1731976124434,3.13833,3186.5,3185.9,3.45272]
[1731976126981,3.13835,3186.4,3185.9,0.3139]